bitfinex-derivatives/quotes_ETHF0:USTF0_20260312
["timestamp","ask_amount","ask_price","bid_price","bid_amount"]
[1773337068582,1.9933308,2065.2,2064.4,2.12712814]
[1773337070484,2.07515943,2065.5,2064.4,2.12712814]
[1773337070879,2.05315943,2065.5,2065.3,0.022]
[1773337071081,1.83312943,2065.5,2065.1,2.00226606]
[1773337071280,8.20879785,2065.7,2065.1,2.00226606]
[1773337071583,0.044,2065.5,2065.1,2.00226606]
[1773337072187,1.86479785,2065.3,2064.9,2.00226606]
[1773337073788,2.10685785,2065.3,2064.7,2.00226606]
[1773337073985,2.19485785,2065.3,2064.7,2.00226606]
[1773337074981,0.088,2065.3,2064.7,2.00226606]
[1773337075386,1.86479785,2065.7,2064.7,1.98026606]
[1773337075886,1.86479785,2065.7,2065.5,0.022]
[1773337075887,1.84279785,2065.7,2065.5,0.022]
[1773337076088,1.84279785,2065.7,2065.3,2.00226606]
[1773337076489,1.88679785,2065.7,2065.3,2.00226606]
[1773337078093,1.88679785,2065.7,2065.1,0.022]
[1773337078094,2.13172785,2065.7,2065.1,2.00226606]
[1773337078292,2.11833785,2065.5,2065.1,2.00226606]
[1773337078488,0.25354,2065.5,2065.1,2.00226606]
[1773337078887,2.11833785,2065.5,2065.1,2.00226606]
[1773337079286,1.86479785,2065.5,2065.1,1.42735031]
[1773337079591,2.19887785,2065.5,2065.1,1.42735031]
[1773337080393,0.088,2065.5,2065.1,1.42735031]
[1773337081497,2.19766785,2065.5,2065.1,1.42735031]
[1773337081801,2.19766785,2065.5,2064.9,2.00226606]
[1773337082594,1.86479785,2065.3,2064.9,0.022]
[1773337082799,2.11645785,2065.3,2064.7,2.00226606]
[1773337083100,1.86479785,2065.3,2064.7,2.00226606]
[1773337083294,2.11144785,2065.3,2064.7,2.00226606]
[1773337084304,2.11144785,2065.3,2064.7,0.022]
[1773337084604,2.10707785,2065.3,2064.7,0.022]
[1773337084803,6.69604,2065.4,2064.7,0.022]
[1773337084804,1.86479785,2065.1,2064.7,0.022]
[1773337085003,2.11312785,2065.1,2064.7,0.022]
[1773337085905,2.10772785,2065.1,2064.7,0.022]
[1773337086107,2.10772785,2065.1,2064.7,2.00226606]
[1773337086606,2.10772785,2065.1,2064.7,0.022]
[1773337087609,0.34341,2065.3,2064.7,2.00226606]
[1773337087909,2.20820785,2065.3,2064.7,2.00226606]
[1773337088998,2.11384785,2065.2,2064.7,0.022]
[1773337089207,2.11384785,2065.2,2064.5,2.00226606]
[1773337089400,1.86479785,2065.0,2064.5,0.022]
[1773337089602,1.86479785,2064.8,2064.4,0.00625049]
[1773337089803,8.20879785,2065.1,2064.4,1.98651655]
[1773337090003,8.45790785,2065.1,2064.4,1.98651655]
[1773337090200,2.11394785,2065.0,2064.4,1.98651655]
[1773337090706,2.12049785,2064.8,2064.4,0.00625049]
[1773337091004,2.12049785,2064.8,2064.3,0.022]
[1773337091302,2.12049785,2064.8,2064.3,2.00226606]
[1773337092210,2.12049785,2064.8,2064.3,2.00717404]
[1773337092711,1.86479785,2064.8,2064.3,2.00717404]
[1773337092914,2.01879785,2065.2,2064.3,2.00717404]
[1773337093108,0.154,2065.2,2064.3,2.00717404]
[1773337093407,0.154,2065.2,2064.4,1.98026606]
[1773337093611,0.1,2065.3,2064.5,1.98026606]
[1773337093809,6.344,2065.5,2064.6,1.98026606]
[1773337094008,0.00361056,2066.0,2064.7,1.98026606]
[1773337094009,1.86479785,2065.9,2064.7,1.98026606]
[1773337094203,0.00361056,2066.0,2065.4,1.98026606]
[1773337094707,0.022,2066.0,2065.4,1.98026606]
[1773337094913,1.86479785,2066.6,2065.4,1.98026606]
[1773337095105,1.84279785,2066.6,2066.0,0.022]
[1773337095502,1.84279785,2066.6,2066.0,0.02692373]
[1773337095503,0.24191,2066.5,2066.0,0.02692373]
[1773337095707,1.84855797,2066.6,2065.6,0.022]
[1773337095708,1.86479785,2066.2,2065.6,0.022]
[1773337095910,1.86479785,2066.2,2065.6,2.00226606]
[1773337096708,0.35194,2066.3,2065.6,2.00618121]
[1773337096709,0.11,2066.3,2065.6,2.00618121]
[1773337097117,1.97479785,2066.3,2065.6,2.00618121]
[1773337097616,0.11,2066.3,2065.6,2.00618121]
[1773337098512,1.97479785,2066.3,2065.6,2.00618121]
[1773337099213,1.87055797,2066.6,2065.6,2.00618121]
[1773337099412,2.81276913,2067.4,2065.6,5.95765515]
[1773337099413,4.03151027,2067.4,2065.6,5.95765515]
[1773337099607,0.24188,2067.4,2067.0,0.022]
[1773337099808,2.10661785,2067.3,2066.6,0.022]
[1773337100412,0.32988,2067.2,2066.6,1.94078102]
[1773337100812,2.36115906,2067.2,2066.6,1.94078102]
[1773337101512,2.60312906,2067.2,2066.6,1.94078102]
[1773337101714,2.27538906,2067.1,2066.6,1.94078102]
[1773337101915,0.22771056,2066.6,2066.4,0.022]
[1773337102221,8.37427906,2067.0,2066.4,1.94078102]
[1773337102520,0.24188,2066.9,2066.4,1.94078102]
[1773337103021,0.48437,2066.9,2066.4,1.94078102]
[1773337103217,0.24188,2066.9,2066.4,1.94078102]
[1773337104316,0.11,2067.1,2066.4,1.94078102]
[1773337107622,0.00442394,2067.3,2066.4,1.94078102]
[1773337107822,0.00442394,2067.3,2066.4,1.91878102]
[1773337108119,2.013703,2067.4,2067.1,0.022]
[1773337108321,1.16442063,2067.4,2066.9,1.94078102]
[1773337108517,1.41065457,2067.4,2066.7,0.022]
[1773337108717,0.066,2067.2,2066.7,0.022]
[1773337108923,1.78972362,2067.1,2066.7,0.022]
[1773337109124,1.79535086,2067.1,2066.7,0.02582195]
[1773337109325,0.00562724,2067.1,2066.7,1.94460297]
[1773337109620,1.85416088,2067.1,2066.7,1.94460297]
[1773337109925,1.85416088,2067.1,2066.7,0.02582195]
[1773337110828,2.09713088,2067.1,2066.7,0.02582195]
[1773337111624,0.00562724,2067.1,2066.7,1.94460297]
[1773337111822,0.066,2067.2,2066.7,1.94460297]
[1773337112423,0.24181,2067.4,2066.7,1.94460297]
[1773337112622,12.7907394,2068.2,2066.7,1.94460297]
[1773337112623,1.83838522,2067.7,2066.7,1.92260297]
[1773337112825,1.84368836,2067.7,2066.7,1.92260297]
[1773337113122,1.84368836,2067.7,2067.3,0.022]
[1773337113123,1.82168836,2067.7,2067.3,0.022]
[1773337113324,0.23021,2067.3,2067.2,1.08508127]
[1773337113528,0.23021,2067.3,2067.1,1.94078102]
[1773337113730,2.34077906,2067.6,2067.1,1.94078102]
[1773337114026,0.2312,2067.1,2066.9,0.022]
[1773337114232,2.03127906,2067.1,2066.7,1.94460297]
[1773337114631,0.22233,2066.5,2066.1,1.94078102]
[1773337114828,2.25360906,2066.5,2066.1,1.94078102]
[1773337115032,2.03127906,2067.0,2066.1,1.94078102]
[1773337115236,2.27374906,2067.0,2066.1,1.94078102]
[1773337115532,2.27374906,2067.0,2066.1,1.946868]
[1773337115926,2.30222906,2066.8,2066.1,0.02808698]
[1773337116434,2.03127906,2066.1,2065.9,0.022]
[1773337116633,2.03127906,2066.4,2065.7,1.94078102]
[1773337116830,2.30350906,2066.4,2065.7,1.94078102]
[1773337117026,6.58613,2066.5,2065.7,1.94078102]
[1773337117431,6.59047455,2066.5,2065.7,1.94635857]
[1773337117634,8.62175361,2066.5,2065.7,1.94635857]
[1773337117835,2.29255906,2066.4,2065.7,1.94635857]
[1773337118332,6.58783455,2066.5,2065.7,1.94635857]
[1773337118533,8.61911361,2066.5,2065.7,1.94635857]
[1773337119428,8.37462361,2066.5,2065.7,1.94635857]
[1773337119832,8.61808361,2066.5,2065.7,1.94635857]
[1773337120336,2.27875906,2066.4,2065.7,1.94635857]
[1773337121232,2.03127906,2066.4,2065.7,1.94635857]
[1773337121439,2.27492906,2066.4,2065.7,1.94635857]
[1773337121639,2.03127906,2066.4,2065.7,1.94635857]
[1773337122145,2.27823906,2066.4,2065.7,1.94635857]
[1773337123032,2.27823906,2066.4,2065.7,0.02757755]
[1773337124638,2.27823906,2066.4,2065.7,1.98512501]
[1773337125234,6.34334455,2066.5,2065.5,1.97954746]
[1773337125235,2.01962953,2066.2,2065.5,1.97954746]
[1773337125438,8.35962953,2066.2,2065.5,1.97954746]
[1773337125737,8.63054953,2066.2,2065.5,1.97954746]
[1773337125937,6.82947,2066.3,2065.5,1.97954746]
[1773337126134,6.58511,2066.3,2065.5,1.98386471]
[1773337126330,2.01962953,2066.4,2065.5,1.98386471]
[1773337126534,2.27858408,2066.5,2065.5,1.98386471]
[1773337126734,2.28757953,2066.3,2065.5,1.98386471]
[1773337126940,2.28606953,2066.2,2065.5,1.98386471]
[1773337128235,0.26644,2066.2,2065.5,1.98386471]
[1773337128440,2.28606953,2066.2,2065.5,1.98386471]
[1773337129437,2.26155953,2066.4,2065.5,1.98386471]
[1773337129640,6.58346,2066.3,2065.5,1.98386471]
[1773337130342,8.52429111,2066.3,2065.5,1.98386471]
[1773337130544,2.18329111,2066.3,2065.5,1.98386471]
[1773337130747,1.94083111,2066.3,2065.5,1.98386471]
[1773337131039,2.18354111,2066.3,2065.5,1.98386471]
[1773337131241,1.94083111,2066.3,2065.5,1.98386471]
[1773337131438,2.18369111,2066.3,2065.5,1.98386471]
[1773337131742,1.94083111,2066.3,2065.5,1.98386471]
[1773337131938,6.58293,2066.4,2065.3,1.88762773]
[1773337131939,1.94083111,2066.1,2065.3,1.88762773]
[1773337132242,1.94083111,2065.9,2065.3,1.88762773]
[1773337132537,2.19007111,2065.9,2065.3,1.88762773]
[1773337132843,1.94083111,2065.8,2065.1,1.88762773]
[1773337133043,2.18280111,2066.0,2065.1,1.8918282]
[1773337133238,2.42521111,2066.0,2065.1,1.8918282]
[1773337135145,2.18280111,2066.0,2065.1,1.8918282]
[1773337135543,2.18451111,2065.9,2065.1,1.8918282]
[1773337136140,1.94083111,2065.9,2065.1,1.8918282]
[1773337136939,0.24197,2066.0,2065.1,1.8918282]
[1773337137245,2.18280111,2066.0,2065.1,1.8918282]
[1773337139949,1.94083111,2066.0,2065.1,1.8918282]
[1773337141046,2.18367111,2065.8,2065.1,1.8918282]
[1773337141238,2.18564111,2065.6,2065.1,1.8918282]
[1773337141442,1.94083111,2065.6,2065.1,1.25051126]
[1773337141640,1.94083111,2065.6,2064.9,0.022]
[1773337141641,1.94083111,2065.4,2064.9,0.022]
[1773337141845,1.94083111,2065.4,2064.7,0.022]
[1773337142046,2.18487111,2065.4,2064.7,0.022]
[1773337142543,3.05425022,2065.3,2064.5,0.022]
[1773337142749,3.05425022,2065.3,2064.5,1.88762773]
[1773337142750,1.94083111,2065.0,2064.5,1.88762773]
[1773337142943,1.94083111,2065.0,2064.5,0.022]
[1773337143244,2.19229111,2065.0,2064.5,0.022]
[1773337143446,2.19422111,2064.7,2064.3,0.022]
[1773337143650,1.94083111,2065.2,2064.3,1.89197078]
[1773337144756,1.94608964,2065.2,2064.3,1.89197078]
[1773337154265,0.00525853,2065.2,2064.5,1.86562773]
[1773337154759,1.94083111,2066.1,2065.0,1.86562773]
[1773337154967,1.94083111,2066.1,2065.1,1.86562773]
[1773337155665,1.94689181,2066.1,2065.1,1.86562773]
[1773337157067,0.0060607,2066.1,2065.1,1.86562773]
[1773337158161,0.374,2066.2,2065.1,1.86562773]
[1773337158363,2.31483111,2066.2,2065.2,1.86562773]
[1773337159264,2.31834311,2066.2,2065.2,1.86562773]
[1773337159873,0.377512,2066.2,2065.2,1.86562773]
[1773337160273,2.31834311,2066.2,2065.2,1.86562773]
[1773337160774,0.377512,2066.2,2065.2,1.86562773]
[1773337161672,1.9238036,2066.2,2065.2,1.86562773]
[1773337162572,1.9238036,2066.2,2065.2,2.10768773]
[1773337162777,1.9238036,2066.2,2065.2,1.86562773]
[1773337163782,1.5462916,2066.0,2065.2,1.86562773]
[1773337164983,1.9238036,2066.2,2065.2,1.86562773]
[1773337165579,2.1657536,2066.2,2065.2,1.86562773]
[1773337165780,1.5462916,2066.1,2065.2,1.86562773]
[1773337166180,1.5462916,2066.1,2064.7,2.81220022]
[1773337166181,1.5462916,2065.7,2065.0,1.53116674]
[1773337167385,1.5462916,2065.7,2064.7,1.53116674]
[1773337168280,1.5462916,2065.5,2064.7,1.53116674]
[1773337171589,1.5462916,2065.9,2064.7,1.53116674]
[1773337171990,1.5462916,2065.9,2064.8,1.53116674]
[1773337172288,1.5962916,2066.0,2064.8,1.53116674]
[1773337172483,1.5462916,2065.8,2064.8,1.53116674]
[1773337174985,0.05,2066.0,2065.1,1.53116674]
[1773337175288,0.05,2066.0,2065.3,1.53116674]
[1773337175790,0.05,2066.0,2065.3,4.34336696]
[1773337175992,0.377512,2066.2,2065.4,1.53116674]
[1773337176393,0.377512,2066.2,2065.4,1.77455674]
[1773337177994,0.377512,2066.2,2065.4,1.77504674]
[1773337178492,1.9238036,2066.2,2065.4,1.77504674]
[1773337178696,1.9238036,2066.2,2065.4,1.53116674]
[1773337178987,1.9238036,2066.2,2065.4,1.77870674]
[1773337179486,1.9238036,2066.2,2065.4,1.77335674]
[1773337179686,1.9238036,2066.2,2065.4,1.53116674]
[1773337180290,1.9238036,2066.2,2065.4,1.77450674]
[1773337180486,1.9238036,2066.2,2065.4,1.53116674]
[1773337181687,1.9238036,2066.2,2065.2,1.53116674]
[1773337182789,1.28770955,2065.9,2065.0,1.33202963]
[1773337183388,1.28770955,2065.7,2064.8,1.33202963]
[1773337189895,1.28770955,2065.5,2064.8,1.33202963]
[1773337191794,1.30725818,2065.8,2064.8,1.33202963]
[1773337195200,0.24197,2066.1,2064.9,1.2424131]
[1773337195398,1.30725818,2066.0,2065.0,1.2424131]
[1773337196804,1.30725818,2066.0,2065.1,1.2424131]
[1773337197607,1.68477018,2066.2,2065.1,1.2424131]
[1773337197806,1.30725818,2066.1,2065.1,1.2424131]
[1773337200210,1.68477018,2066.2,2065.1,1.2424131]
[1773337200505,1.68477018,2066.2,2065.2,1.2424131]
[1773337200910,1.30725818,2066.1,2065.2,1.2424131]
[1773337201210,1.30725818,2065.9,2065.1,1.2424131]
[1773337201410,1.30725818,2065.9,2065.0,1.2424131]
[1773337202606,1.30725818,2065.5,2064.8,1.2424131]
[1773337205407,1.30725818,2065.8,2064.8,1.2424131]
[1773337205613,1.54922818,2066.0,2065.0,1.2424131]
[1773337206812,1.30725818,2066.1,2065.0,1.2424131]
[1773337207013,1.54922818,2066.1,2065.0,1.2424131]
[1773337208615,1.30725818,2066.1,2065.1,1.2424131]
[1773337210214,1.30725818,2066.1,2065.2,1.2424131]
[1773337218124,1.68477018,2066.2,2065.3,1.2424131]
[1773337219023,0.377512,2066.2,2065.5,1.2424131]
[1773337219630,1.68477018,2066.2,2065.5,1.2424131]
[1773337219924,1.68477018,2066.2,2065.5,1.4857931]
[1773337220122,1.68477018,2066.2,2065.5,1.4847831]
[1773337220721,1.03590688,2066.7,2065.6,1.27135688]
[1773337220919,5.96350756,2067.3,2065.9,1.27282688]
[1773337220920,1.03590688,2066.9,2065.9,1.27282688]
[1773337221218,1.01390688,2066.9,2066.7,0.022]
[1773337221419,0.28967471,2067.5,2066.7,0.022]
[1773337221420,1.03590688,2067.3,2066.7,0.022]
[1773337221729,5.74387211,2067.4,2066.7,1.04264688]
[1773337221730,1.05790688,2067.0,2066.7,1.04264688]
[1773337221928,1.06401909,2067.0,2066.7,1.04676941]
[1773337222330,1.06401909,2067.0,2066.3,0.022]
[1773337222633,1.10190688,2066.8,2066.3,0.022]
[1773337223129,1.10190688,2066.8,2066.3,1.04264688]
[1773337223427,1.10190688,2066.8,2066.3,0.02777009]
[1773337223627,1.10190688,2066.8,2066.1,0.022]
[1773337223822,1.03590688,2066.6,2066.1,0.022]
[1773337224437,1.03590688,2066.6,2066.1,1.04264688]
[1773337224637,1.03590688,2066.6,2066.1,1.04811958]
[1773337224838,1.03590688,2066.6,2066.1,0.0274727]
[1773337226041,1.03590688,2066.6,2066.1,1.04811958]
[1773337226932,1.03590688,2066.6,2065.9,0.022]
[1773337227139,1.14590688,2066.6,2065.9,0.022]
[1773337227439,1.14590688,2066.6,2065.7,0.022]
[1773337227634,1.03590688,2066.4,2065.7,0.022]
[1773337228141,1.03590688,2066.4,2065.7,0.00433758]
[1773337228335,1.03590688,2066.4,2065.7,1.02498446]
[1773337228639,1.16790688,2066.5,2065.7,1.02498446]
[1773337230743,0.132,2066.5,2065.7,1.02498446]
[1773337231741,0.132,2066.5,2065.9,1.02064688]
[1773337232041,0.132,2066.5,2065.9,1.26569688]
[1773337232239,0.132,2066.5,2065.8,0.242]
[1773337232240,1.03590688,2066.8,2066.5,0.11019]
[1773337232542,1.04201909,2067.0,2066.5,1.02064688]
[1773337232744,0.00611221,2067.0,2066.5,1.02064688]
[1773337233144,1.04201909,2067.0,2066.5,1.02064688]
[1773337234540,1.04201909,2067.0,2066.2,1.02064688]
[1773337235943,0.00611221,2067.0,2066.2,1.02064688]
[1773337237040,1.04201909,2067.0,2066.2,1.02064688]
[1773337237341,1.04201909,2067.0,2066.2,1.26402688]
[1773337237541,1.04201909,2067.0,2066.2,1.26305688]
[1773337238045,1.04201909,2067.0,2066.2,1.02064688]
[1773337238941,1.04201909,2067.0,2066.0,1.02064688]
[1773337239146,1.04201909,2067.0,2065.7,6.34433758]
[1773337239147,1.03590688,2066.8,2065.8,1.02064688]
[1773337239348,1.03590688,2066.6,2065.8,1.02064688]
[1773337240744,1.03590688,2066.6,2065.7,0.00433758]
[1773337241045,1.03590688,2066.6,2065.7,1.02498446]
[1773337243543,1.03590688,2066.6,2065.7,1.26788446]
[1773337243749,0.95067422,2066.9,2066.0,0.95220975]
[1773337243949,0.95067422,2066.9,2066.3,0.95220975]
[1773337246748,0.00611221,2067.0,2066.3,0.95220975]
[1773337247049,6.58079,2067.6,2066.5,0.95220975]
[1773337247050,0.95067422,2067.6,2066.5,0.95220975]
[1773337247247,0.95067422,2067.6,2066.4,6.58093]
[1773337247248,0.95067422,2067.6,2066.6,0.95220975]
[1773337247442,0.95067422,2067.6,2066.9,0.95220975]
[1773337247750,4.26253539,2068.1,2067.0,0.95220975]
[1773337247751,0.95067422,2068.0,2067.0,0.95220975]
[1773337248049,0.95616752,2068.0,2067.0,0.95220975]
[1773337252158,0.91854953,2067.6,2066.8,1.00914535]
[1773337252551,0.91854953,2067.6,2066.8,0.022]
[1773337254160,0.91854953,2067.6,2066.8,1.00914535]
[1773337258764,0.91854953,2067.6,2066.8,0.022]
[1773337259663,1.16196953,2067.5,2066.8,0.022]
[1773337259864,1.16313953,2067.4,2066.8,0.022]
[1773337260058,0.91854953,2067.3,2066.8,1.00914535]
[1773337260263,0.91854953,2067.5,2066.8,1.00914535]
[1773337262365,0.91854953,2067.5,2066.8,0.98714535]
[1773337262663,0.89654953,2067.5,2067.3,0.022]
[1773337262864,0.89654953,2067.5,2067.3,0.02801863]
[1773337263062,0.91854953,2067.8,2067.3,1.01516398]
[1773337263267,0.022,2067.6,2067.3,1.01516398]
[1773337263457,0.94054953,2067.6,2067.3,1.01516398]
[1773337264463,0.94054953,2067.6,2067.3,0.02801863]
[1773337265968,0.94054953,2067.6,2067.3,1.01516398]
[1773337266368,0.94054953,2067.6,2067.3,0.02801863]
[1773337266869,0.94054953,2067.6,2067.1,1.00914535]
[1773337267073,0.91854953,2067.4,2067.1,0.022]
[1773337267770,1.16214953,2067.3,2067.1,0.022]
[1773337267969,1.16207953,2067.2,2066.9,1.00914535]
[1773337268165,0.91854953,2067.2,2066.9,1.00914535]
[1773337268565,0.91854953,2067.3,2066.9,1.00914535]
[1773337268760,0.91854953,2067.3,2066.9,0.022]
[1773337268965,0.91854953,2067.3,2066.9,1.01401219]
[1773337269872,0.98454953,2067.4,2066.9,1.01401219]
[1773337271167,0.066,2067.4,2066.7,1.00914535]
[1773337271372,0.91854953,2067.1,2066.7,0.022]
[1773337271666,0.91854953,2067.1,2066.5,0.022]
[1773337271867,6.337,2067.5,2066.5,1.00914535]
[1773337271868,1.16825953,2067.0,2066.5,1.00914535]
[1773337272074,1.16756953,2066.9,2066.5,1.00914535]
[1773337272273,1.16756953,2066.9,2066.5,1.01288762]
[1773337272677,1.16301953,2066.8,2066.5,1.01288762]
[1773337272967,0.91854953,2066.7,2066.3,0.022]
[1773337273172,0.91854953,2066.7,2066.3,1.00914535]
[1773337273774,0.91854953,2066.7,2066.3,1.01312972]
[1773337274569,0.91854953,2066.7,2066.3,0.02598437]
[1773337275072,0.91854953,2066.7,2066.3,1.01312972]
[1773337275576,0.91854953,2066.7,2066.3,0.02598437]
[1773337276772,0.132,2067.1,2066.3,1.01312972]
[1773337277272,0.91854953,2067.5,2066.5,0.98714535]
[1773337277868,0.91854953,2067.5,2067.1,0.022]
[1773337277869,0.89654953,2067.5,2067.1,0.022]
[1773337278772,0.94054953,2067.5,2067.1,0.022]
[1773337278975,0.94054953,2067.5,2067.1,1.00914535]
[1773337279177,4.02629869,2068.0,2067.1,1.00914535]
[1773337279178,0.53538359,2067.6,2067.1,0.98714535]
[1773337279370,0.91854953,2067.9,2067.1,0.98714535]
[1773337279568,0.89654953,2067.9,2067.4,0.022]
[1773337280374,0.89654953,2067.9,2067.4,0.93386611]
[1773337281074,0.89654953,2067.9,2067.2,0.022]
[1773337281476,0.98231486,2067.7,2067.2,0.022]
[1773337281881,0.98231486,2067.7,2067.2,0.93386611]
[1773337282378,0.98231486,2067.7,2067.2,0.022]
[1773337283180,0.98231486,2067.7,2067.2,0.93386611]
[1773337283381,0.98231486,2067.7,2067.2,0.022]
[1773337283577,0.98231486,2067.7,2067.2,0.93386611]
[1773337283778,0.98231486,2067.7,2067.2,0.022]
[1773337283975,0.98231486,2067.7,2067.2,0.93386611]
[1773337288592,0.98231486,2067.7,2067.2,0.022]
[1773337288880,0.98231486,2067.7,2067.2,0.93386611]
[1773337289484,1.02631486,2067.8,2067.2,0.93386611]
[1773337292186,0.98231486,2067.7,2067.2,0.93386611]
[1773337295687,0.98231486,2067.5,2066.8,0.022]
[1773337295992,0.98231486,2067.4,2066.8,0.022]
[1773337296387,0.98231486,2067.4,2066.6,0.93386611]
[1773337296582,1.22414486,2067.2,2066.4,0.93386611]
[1773337296785,0.98231486,2066.9,2066.0,0.93386611]
[1773337296985,0.98231486,2066.6,2066.0,0.022]
[1773337297186,1.22464486,2066.6,2066.0,0.022]
[1773337297487,0.98231486,2066.6,2066.0,0.022]
[1773337297690,0.98231486,2066.6,2066.0,0.93386611]
[1773337297887,0.98231486,2066.6,2066.0,0.93944302]
[1773337299182,0.98231486,2066.6,2066.0,0.02757691]
[1773337299382,0.98231486,2066.6,2066.0,0.93944302]
[1773337301593,0.98231486,2066.6,2066.0,0.02757691]
[1773337302094,0.98231486,2066.6,2066.0,0.93944302]
[1773337302486,0.98973353,2066.8,2066.0,0.93944302]
[1773337302698,1.16573353,2067.0,2066.0,0.93944302]
[1773337304699,1.16573353,2067.0,2066.2,0.98826099]
[1773337306800,0.176,2067.0,2066.2,0.98826099]
[1773337307595,0.176,2067.0,2066.3,0.98826099]
[1773337308303,0.176,2067.0,2066.3,1.23360099]
[1773337308798,1.16573353,2067.0,2066.3,1.23025099]
[1773337309005,1.16573353,2067.0,2066.3,0.98826099]
[1773337310413,1.16573353,2067.0,2066.2,1.02897761]
[1773337315813,1.16573353,2067.0,2066.1,7.36697761]
[1773337316010,1.21607728,2066.9,2066.0,0.02757691]
[1773337316514,0.97420728,2066.5,2065.8,0.022]
[1773337317019,0.97420728,2066.5,2065.6,1.05097761]
[1773337317415,0.97420728,2066.3,2065.6,0.022]
[1773337317719,0.97806382,2066.3,2065.6,0.02412887]
[1773337317920,0.97420728,2066.1,2065.2,1.05097761]
[1773337318316,0.97806382,2066.3,2065.4,1.02897761]
[1773337320708,0.97806382,2066.3,2065.2,1.05097761]
[1773337320709,0.97420728,2066.0,2065.2,1.05097761]
[1773337320914,0.97420728,2066.0,2065.2,0.022]
[1773337321520,0.24198,2065.9,2065.2,0.022]
[1773337321716,0.97420728,2065.8,2065.0,0.022]
[1773337321910,0.97420728,2065.8,2065.0,1.05097761]
[1773337322317,0.97420728,2066.2,2065.0,1.05097761]
[1773337322514,0.97420728,2066.2,2065.1,1.02897761]
[1773337323623,0.97420728,2066.2,2065.1,1.27105761]
[1773337324227,0.00385654,2066.3,2065.6,1.02897761]
[1773337324421,0.00385654,2066.3,2065.7,1.02897761]
[1773337324823,0.97806382,2066.3,2065.7,1.02897761]
[1773337325920,0.00385654,2066.3,2065.7,1.02897761]
[1773337326527,0.97806382,2066.3,2065.7,1.27177761]
[1773337326726,0.97806382,2066.3,2065.7,1.02897761]
[1773337327217,0.97806382,2066.3,2065.7,1.27279761]
[1773337327618,0.00385654,2066.3,2065.7,1.27279761]
[1773337328719,0.97806382,2066.3,2065.7,1.27265761]
[1773337329427,0.97806382,2066.3,2065.7,1.02897761]
[1773337329622,0.97806382,2066.3,2065.7,1.27801761]
[1773337331524,0.97806382,2066.3,2065.7,1.02897761]
[1773337331723,0.97806382,2066.3,2065.5,7.36897761]
[1773337331918,0.97806382,2066.3,2065.6,1.02897761]
[1773337333527,0.97806382,2066.3,2065.2,1.02897761]
[1773337334627,0.24195,2066.2,2065.2,1.02897761]
[1773337334834,0.97420728,2066.1,2065.0,1.05097761]
[1773337341232,0.97420728,2066.1,2065.1,1.05153973]
[1773337342629,0.97420728,2066.1,2065.1,1.29527973]
[1773337345336,1.08928989,2066.3,2065.3,1.31073973]
[1773337345636,0.00385654,2066.3,2065.5,1.31299973]
[1773337348741,1.08928989,2066.3,2065.5,1.31299973]
[1773337349845,1.08928989,2066.3,2065.6,1.32767973]
[1773337350244,1.08928989,2066.3,2065.7,1.31742973]
[1773337350944,1.08928989,2066.3,2065.5,1.29557973]
[1773337352946,1.08928989,2066.3,2065.5,1.05153973]
[1773337353246,1.08928989,2066.3,2065.3,1.05153973]
[1773337357250,1.08928989,2066.3,2065.1,1.05153973]
[1773337357655,1.08928989,2066.3,2065.3,1.05153973]
[1773337357948,1.08928989,2066.3,2065.5,1.05153973]
[1773337359444,0.00385654,2066.3,2065.5,1.05153973]
[1773337359844,0.286,2066.5,2065.7,1.05153973]
[1773337360250,0.286,2066.5,2065.8,1.05153973]
[1773337360743,1.37143335,2066.5,2065.8,1.05153973]
[1773337360941,1.37764324,2066.5,2065.8,1.05539627]
[1773337361541,1.37764324,2066.5,2065.8,1.29797627]
[1773337361942,1.08543335,2066.4,2065.8,1.05539627]
[1773337362545,1.08543335,2066.4,2065.8,0.00385654]
[1773337363956,1.08543335,2066.4,2065.8,1.10722773]
[1773337365849,0.29220989,2066.5,2065.9,1.10337119]
[1773337367261,1.47760008,2066.5,2065.9,1.10337119]
[1773337368661,1.47760008,2066.5,2065.9,1.34596119]
[1773337368860,1.47760008,2066.5,2065.9,1.10337119]
[1773337371161,1.47760008,2066.5,2065.9,1.34578119]
[1773337372657,0.29220989,2066.5,2065.9,1.34550119]
[1773337372859,1.46325366,2066.5,2065.9,1.10337119]
[1773337373264,1.46325366,2066.5,2065.9,1.34580119]
[1773337373962,1.46325366,2066.5,2065.9,1.10337119]
[1773337375069,1.17104377,2066.3,2065.8,0.00385654]
[1773337375670,1.17104377,2066.3,2065.8,1.19477942]
[1773337377373,1.17104377,2066.3,2065.8,0.00385654]
[1773337377665,1.17104377,2066.3,2065.6,1.19092288]
[1773337377864,1.17104377,2066.3,2065.4,1.19092288]
[1773337378574,1.17104377,2066.1,2065.4,1.19092288]
[1773337378869,1.17104377,2066.1,2065.3,1.19092288]
[1773337380173,1.17104377,2066.1,2065.1,1.19092288]
[1773337382967,1.17104377,2066.0,2065.1,1.19092288]
[1773337384469,1.17104377,2065.7,2064.8,0.022]
[1773337384668,0.24202,2065.6,2064.8,0.022]
[1773337384869,1.17104377,2065.4,2064.6,0.022]
[1773337385062,2.81158439,2065.5,2064.6,0.022]
[1773337385063,1.17104377,2065.3,2064.6,0.022]
[1773337385468,3.05365439,2065.2,2064.4,0.022]
[1773337385670,1.17104377,2065.1,2064.4,0.022]
[1773337385865,1.17104377,2064.8,2064.0,0.022]
[1773337386070,1.17727296,2064.8,2063.8,0.022]
[1773337386472,1.17104377,2064.7,2063.8,0.022]
[1773337387769,1.17104377,2064.7,2063.8,1.21292288]
[1773337388370,0.00622919,2064.8,2063.8,1.21292288]
[1773337388564,0.00622919,2064.8,2064.1,1.19092288]
[1773337389664,1.17727296,2064.8,2064.1,1.19092288]
[1773337390269,1.17727296,2064.8,2064.1,1.43355288]
[1773337390573,1.17727296,2064.8,2064.1,1.19092288]
[1773337390775,1.17727296,2064.8,2064.1,1.43348288]
[1773337390972,0.00622919,2064.8,2064.1,1.43348288]
[1773337391172,1.17727296,2064.8,2064.1,1.19092288]
[1773337391675,1.17727296,2064.8,2064.1,1.43676288]
[1773337391875,1.17727296,2064.8,2064.1,1.19092288]
[1773337392175,1.17727296,2064.8,2064.1,1.43676288]
[1773337393578,0.00622919,2064.8,2064.1,1.43676288]
[1773337395175,1.17727296,2064.8,2064.1,1.19092288]
[1773337395374,1.17727296,2064.8,2064.1,1.44355288]
[1773337395580,1.17727296,2064.8,2063.9,1.44302288]
[1773337396370,1.17727296,2064.8,2063.9,1.19092288]
[1773337396569,1.17727296,2064.8,2063.9,1.43633288]
[1773337396775,1.17727296,2064.8,2063.9,1.19092288]
[1773337396975,1.17727296,2064.8,2063.9,1.44092288]